Cogmind - Beta 12 @@@ ROGUE MODE // 2023.10.21 @ 14:30:21 Player: Fleshy Vegetable Bird Result: Destroyed by S-27 Virus with Autogun Performance ------------- Evolutions (3) 1500 Regions Visited (12) 2400 Robots Destroyed (95) 475 Value Destroyed (2348) 2348 Prototype IDs (16) 320 Alien Tech Used (0) 0 Bonus (340) 340 TOTAL SCORE: 7383 Bonus ------- Follower Combat Kills 40 Met Data Miner 300 Cogmind --------- Core Integrity 0/700 Matter 300/300 Energy 99/100 System Corruption 2% Temperature Cool (2) Movement Hovering (51) Location -6/Proximity Caves Parts ------- > --- POWER (1) -------- (None) > --- PROPULSION (3) --- Improved Hover Unit Aerolev Unit > --- UTILITY (7) ------ Advanced Weight Redist. System Improved Terrain Scan Processor Improved Melee Analysis Suite Improved Melee Analysis Suite Improved Melee Analysis Suite Improved Melee Analysis Suite System Shield > --- WEAPON (2) ------- Chainsword Chainsword > --- INVENTORY (5) ---- Actuator Array Makeshift System Shield Autogun Peak State ------------ > --- POWER ------------ Light Angular Momentum Engine > --- PROPULSION ------- Improved Hover Unit Aerolev Unit Aerolev Unit > --- UTILITY ---------- Experimental Sensor Array Improved Terrain Scanner Improved Terrain Scan Processor Improved Melee Analysis Suite Improved Melee Analysis Suite Hacking Suite System Shield > --- WEAPON ----------- Chainsword > --- INVENTORY -------- Improved Hover Unit Advanced Weight Redist. System Reaction Control System Blade Saw [Rating: 49] Favorites ----------- Power Light Ion Engine Engine Light Ion Engine Power Core Micro Nuclear Core Propulsion Wheel Treads Improved Treads Wheel Wheel Hover Unit Improved Hover Unit Utility Improved Terrain Scan Processor Device Improved Terrain Scanner Storage High-capacity Storage Unit Processor Improved Terrain Scan Processor Hackware System Shield Protection Improved Light Armor Plating Weapon Advanced Beam Cannon Energy Gun Small Laser Energy Cannon Advanced Beam Cannon Ballistic Gun Light Assault Rifle Ballistic Cannon Gauss Cannon Launcher Rocket Launcher Special Weapon Mining Laser Impact Weapon Heavy Hammer Slashing Weapon Chainsword Build | -11 -10 -10 -9 -9 -9 -8 -8 -7 -7 -7 -7 -6 ------- Run | Jun Mat Min Mat Min Exi Min Mat Fac Low Low Dat Pro Slots Evolved 6 | . . . 2 . . . 2 2 . . . . Power . | . . . . . . . . . . . . . Propulsion 1 | . . . . . . . 1 . . . . . Utility 5 | . . . 2 . . . 1 2 . . . . Weapon . | . . . . . . . . . . . . . Parts Attached 108 | 6 . 8 11 7 . 4 17 48 . 6 . 1 Power 10 | 1 . 1 1 1 . . 2 3 . 1 . . Engine 8 | 1 . 1 1 1 . . 2 2 . . . . Core 2 | . . . . . . . . 1 . 1 . . Reactor . | . . . . . . . . . . . . . Propulsion 31 | 2 . 4 2 . . 1 7 13 . 2 . . Treads 3 | . . . . . . . 2 1 . . . . Leg . | . . . . . . . . . . . . . Wheel 20 | 2 . 4 2 . . 1 5 6 . . . . Hover 8 | . . . . . . . . 6 . 2 . . Flight . | . . . . . . . . . . . . . Utility 35 | 1 . 1 5 2 . 1 2 21 . 2 . . Device 14 | . . . 2 2 . . . 9 . 1 . . Storage 3 | 1 . . 1 . . . . 1 . . . . Processor 13 | . . 1 2 . . 1 . 8 . 1 . . Hackware 2 | . . . . . . . . 2 . . . . Protection 3 | . . . . . . . 2 1 . . . . Artifact . | . . . . . . . . . . . . . Weapon 32 | 2 . 2 3 4 . 2 6 11 . 1 . 1 Energy Gun 2 | 1 . 1 . . . . . . . . . . Energy Cannon 7 | . . . 2 1 . 1 3 . . . . . Ballistic Gun 5 | 1 . 1 1 1 . . . . . 1 . . Ballistic Cannon 5 | . . . . . . . . 5 . . . . Launcher 4 | . . . . . . 1 2 1 . . . . Special Weapon 2 | . . . . 2 . . . . . . . . Impact Weapon 3 | . . . . . . . 1 2 . . . . Slashing Weapon 4 | . . . . . . . . 3 . . . 1 Piercing Weapon . | . . . . . . . . . . . . . Special Melee Weapon . | . . . . . . . . . . . . . Unidentified Prototypes 3 | . . . 1 . . . . 2 . . . . Parts Lost 41 | . . 3 3 . . 2 18 8 . 6 . 1 Power 8 | . . . 1 . . . 3 2 . 1 . 1 Propulsion 23 | . . 3 2 . . 1 8 6 . 3 . . Utility 6 | . . . . . . 1 3 . . 2 . . Weapon 4 | . . . . . . . 4 . . . . . Highest Loss Streak 10 | . . 2 2 . . 2 10 4 . 6 . 1 To Critical Strikes . | . . . . . . . . . . . . . Average Slot Usage (%) 90 | . 85 95 86 98 100 97 81 88 92 85 92 90 Engine 6 | . 14 14 7 9 11 11 5 1 7 1 . . Core 1 | . . . . . . . . 4 . 5 7 5 Treads 1 | . . . . . . . 5 2 . . . . Wheel 15 | . 28 27 20 22 22 20 14 7 . . . . Hover 4 | . . . . . . . . 6 23 16 15 15 Device 5 | . . . 7 11 11 . . 9 7 5 7 7 Storage 8 | . 14 14 11 11 11 11 9 4 . . . . Processor 22 | . . 10 17 22 22 31 24 28 30 34 38 38 Hackware 2 | . . . . . . . . 4 15 8 7 7 Protection 1 | . . . . . . . 4 3 . . . . Energy Gun 3 | . 14 14 5 . . . . . . . . . Energy Cannon 5 | . . . 10 18 11 9 9 . . . . . Ballistic Gun 4 | . 14 14 5 3 11 11 1 . . 2 7 . Ballistic Cannon 1 | . . . . . . . . 4 . . . . Impact Weapon 1 | . . . . . . . 4 1 . . . . Slashing Weapon 2 | . . . . . . . . 5 7 7 7 14 Naked Turns . | . . . . . . . . . . . . . Heaviest Build 65 | 10 10 10 56 56 51 51 58 65 7 11 11 11 Greatest Support 42 | 20 20 20 20 20 20 20 42 32 22 24 24 24 Greatest Overweight (x) 16 | . . . 2 2 2 5 5 16 . . . . Average Overweight (x) . | . . . . 2 2 2 1 1 . . . . Largest Inventory Capacity 20 | 8 8 8 20 20 20 20 20 20 5 5 5 5 Average Capacity 12 | 7 8 8 8 20 20 20 20 14 5 5 5 5 Most Carried 20 | 7 7 8 8 11 15 16 20 20 5 5 2 3 Average Carried 9 | 3 7 6 7 9 13 14 13 13 4 3 2 2 Final Capacity 20 | 8 8 8 20 20 20 20 20 5 5 5 5 5 Final Carried 19 | 7 7 7 8 11 15 16 19 4 5 2 2 3 Class Distribution -------------------- 57% | Mutant 24% | Scavenger-Mutant 9% | Hacker-Mutant 3% | Scout 3% | Assassin Dominant Class ---------------- Mutant | -10/Materials Scavenger-Mutant | -10/Mines Scavenger-Mutant | -9/Materials Mutant | -9/Mines Scavenger-Mutant | -9/Exiles Mutant | -8/Mines Mutant | -8/Materials Mutant | -7/Factory Hacker-Mutant | -7/Lower Caves Mutant | -7/Lower Caves Mutant | -7/Data Miner Mutant | -6/Proximity Caves Resources | -11 -10 -10 -9 -9 -9 -8 -8 -7 -7 -7 -7 -6 ----------- Run | Jun Mat Min Mat Min Exi Min Mat Fac Low Low Dat Pro Matter Collected 1726 | 291 . 98 167 79 . 131 327 445 87 91 . 10 Remotely . | . . . . . . . . . . . . . Salvage Created 3347 | 210 12 271 644 109 . 185 649 1066 . 201 . . Parts 188 | 16 . 25 33 13 . 13 30 47 . 11 . . Haulers Intercepted 4 | . . . 2 . . . . 2 . . . . Recyclers Shooed 2 | . . . . . . . . 2 . . . . Parts Field Recycled . | . . . . . . . . . . . . . Retrieved Matter . | . . . . . . . . . . . . . Parts Self-Destructed 10 | . . . . . . . . . . 6 . 4 Prevented . | . . . . . . . . . . . . . Kills | -11 -10 -10 -9 -9 -9 -8 -8 -7 -7 -7 -7 -6 ------- Run | Jun Mat Min Mat Min Exi Min Mat Fac Low Low Dat Pro Combat Hostiles Destroyed 62 | . . 9 9 7 . 6 13 15 . 3 . . Melee 10 | . . . . . . . . 8 . 2 . . Guns 18 | . . 8 6 1 . 2 . . . 1 . . Cannons 22 | . . . 3 2 . 2 9 6 . . . . AOE 11 | . . 1 . 4 . 2 4 . . . . . Classes Destroyed 16 | 3 1 3 3 1 . . 1 1 . 3 . . Worker 7 | 1 . . 3 . . . 2 1 . . . . Builder 2 | . . 1 . . . . 1 . . . . . Tunneler 10 | 5 . . . 2 . 3 . . . . . . Hauler 4 | . . . 2 . . . . 2 . . . . Recycler 7 | 1 . . . . . . . 6 . . . . Minesweeper 1 | . . . . . . . . . . 1 . . Operator 2 | . 1 . . . . . . 1 . . . . Watcher 3 | . . . 2 . . . . 1 . . . . Swarmer 26 | . . 6 . 4 . 3 . 11 . 2 . . Grunt 21 | . . 3 5 . . 3 8 2 . . . . Brawler 1 | . . . . . . . . . . 1 . . Sentry 6 | . . . 4 . . . 2 . . . . . Hunter 4 | . . . . . . . 3 1 . . . . Programmer 1 | . . . . . . . . 1 . . . . Samaritan 1 | . . . . . . . . . . 1 . . Assembled 3 | . . . . 3 . . . . . . . . Best Kill Streak 7 | 2 1 7 5 5 . 3 4 6 . 2 . . Combat Bots Only 6 | . . 6 5 4 . 3 3 4 . 2 . . Max Kills in Single Turn 5 | 1 1 2 1 5 . 2 1 1 . 1 . . Gunslinging 1 | . . 1 . . . . . . . . . . Exploded 4 | . . 1 . 4 . 1 1 . . . . . Melee 1 | . . . . . . . . 1 . 1 . . Uniques/NPCs Destroyed . | . . . . . . . . . . . . . Combat | -11 -10 -10 -9 -9 -9 -8 -8 -7 -7 -7 -7 -6 -------- Run | Jun Mat Min Mat Min Exi Min Mat Fac Low Low Dat Pro Damage Taken 5381 | . . 475 507 240 . 266 1847 1608 85 183 . 170 Core 1381 | . . 95 207 44 . 44 285 546 31 45 . 84 Absorbed by Shields . | . . . . . . . . . . . . . Core Remaining (%) 59 | 100 . 62 . . . 26 48 . . . . . Volleys Fired 209 | 31 4 25 39 18 . 15 59 16 . 2 . . Largest 2 | 2 2 2 2 2 . 2 2 2 . 1 . . Hottest 136 | 60 60 60 136 136 . 91 136 96 . 23 . . Shots Fired 354 | 62 8 50 77 24 . 30 83 18 . 2 . . Gun 205 | 62 8 50 59 6 . 15 3 . . 2 . . Cannon 131 | . . . 18 12 . 10 73 18 . . . . Launcher 12 | . . . . . . 5 7 . . . . . Special 6 | . . . . 6 . . . . . . . . Kinetic 133 | 31 4 25 29 6 . 15 3 18 . 2 . . Thermal 209 | 31 4 25 48 18 . 10 73 . . . . . Explosive 12 | . . . . . . 5 7 . . . . . Electromagnetic . | . . . . . . . . . . . . . Robot Hit Streak 11 | 6 5 8 10 4 . 9 11 4 . 2 . . Robot Miss Streak 6 | 3 2 3 3 3 . 1 6 1 . . . . Penetration Max . | . . . . . . . . . . . . . Secondary Targets 3 | . . 3 . . . . . . . . . . Max Gunslinging Chain 1 | . . 1 . . . . . . . . . . Shots Hit Robots 262 | 40 4 30 57 8 . 17 51 41 . 10 . 4 Core Hits 131 | 10 2 15 24 8 . 14 30 24 . 4 . . Critical Kills 1 | . . . . . . 1 . . . . . . Critical Parts Destroyed 1 | . . . . . . . . 1 . . . . Critical Strikes 4 | . . . . . . 1 . 2 . 1 . . Destroy 1 | . . . . . . 1 . . . . . . Smash 1 | . . . . . . . . 1 . . . . Sever 2 | . . . . . . . . 1 . 1 . . Melee Attacks 65 | . . . . . . . 3 46 2 10 . 4 Impact 10 | . . . . . . . 3 7 . . . . Slashing 55 | . . . . . . . . 39 2 10 . 4 Piercing . | . . . . . . . . . . . . . Sneak Attacks 9 | . . . . . . . . 7 . 2 . . Combat Hostiles . | . . . . . . . . . . . . . Follow-up Attacks 1 | . . . . . . . . . . . . 1 Damage Inflicted 6232 | 394 40 302 821 412 . 610 1339 1689 . 454 . 171 Guns 1528 | 394 40 302 552 43 . 166 . . . 31 . . Cannons 1819 | . . . 269 102 . 122 983 343 . . . . Explosions 945 | . . . . 267 . 322 356 . . . . . Melee 1940 | . . . . . . . . 1346 . 423 . 171 Ramming . | . . . . . . . . . . . . . Kinetic 1179 | 172 18 120 286 43 . 166 . 343 . 31 . . Thermal 2435 | 222 22 182 535 369 . 122 983 . . . . . Explosive 678 | . . . . . . 322 356 . . . . . Electromagnetic . | . . . . . . . . . . . . . Impact 130 | . . . . . . . . 130 . . . . Slashing 1810 | . . . . . . . . 1216 . 423 . 171 Piercing . | . . . . . . . . . . . . . Highest Corruption 2 | . . . . . . . . 2 2 2 2 2 Average Corruption 1 | . . . . . . . . 1 2 2 2 2 Corruption Purged . | . . . . . . . . . . . . . Corruption Blocked 7 | . . . . . . . . 7 . . . . Effects 19 | . . . . . . . . 8 3 5 . 3 Message Errors 4 | . . . . . . . . 1 . 2 . 1 Matter Fused 5 | . . . . . . . . 2 2 1 . . Heat Flow Errors 4 | . . . . . . . . 2 . 1 . 1 Energy Discharges 2 | . . . . . . . . . 1 . . 1 Parts Rejected 1 | . . . . . . . . 1 . . . . Data Loss (minor) 2 | . . . . . . . . 2 . . . . Alerts 1 | . . . . . . . . . . 1 . . Overload Shots . | . . . . . . . . . . . . . Overflow Damage 402 | . . . . 61 . . 17 223 . 101 . . Projectiles 5 | . . . . . . . . 5 . . . . Explosions 78 | . . . . 61 . . 17 . . . . . Melee 319 | . . . . . . . . 218 . 101 . . Knockbacks . | . . . . . . . . . . . . . Impact . | . . . . . . . . . . . . . Kinetic . | . . . . . . . . . . . . . Secondary . | . . . . . . . . . . . . . Self-Inflicted Damage 102 | . . . . 9 . . 93 . . . . . Shots 4 | . . . . 1 . . 3 . . . . . Rammed . | . . . . . . . . . . . . . Targets Rammed . | . . . . . . . . . . . . . Kicked . | . . . . . . . . . . . . . Crushed . | . . . . . . . . . . . . . Highest Temperature 491 | 60 20 207 165 353 . 107 491 151 16 231 . 255 Average Temperature 97 | 26 15 65 39 168 . 46 144 57 16 118 . 125 Received Heat Transfer 1866 | . . 165 255 252 . 99 576 423 63 9 . 24 Effects 5 | . . . . 2 . . 3 . . . . . Shutdowns 1 | . . . . . . . 1 . . . . . Matter Decay 2 | . . . . 1 . . 1 . . . . . Short Circuit 1 | . . . . 1 . . . . . . . . Damage (minor) 1 | . . . . . . . 1 . . . . . Siege Activations . | . . . . . . . . . . . . . Robots Corrupted . | . . . . . . . . . . . . . Combat Hostiles . | . . . . . . . . . . . . . Parts Fried 1 | . . . . . . . . 1 . . . . Impact Corruptions 4 | . . . . . . . . 4 . . . . Robots Melted . | . . . . . . . . . . . . . Combat Hostiles . | . . . . . . . . . . . . . Parts Melted 3 | 1 . . 1 . . . 1 . . . . . Heat Transferred 4539 | 500 50 425 1081 485 . 222 1776 . . . . . Parts Sabotaged . | . . . . . . . . . . . . . Parts Stolen . | . . . . . . . . . . . . . Parts Stripped . | . . . . . . . . . . . . . Power Chain Reactions . | . . . . . . . . . . . . . Missiles Intercepted . | . . . . . . . . . . . . . Alert | -11 -10 -10 -9 -9 -9 -8 -8 -7 -7 -7 -7 -6 ------- Run | Jun Mat Min Mat Min Exi Min Mat Fac Low Low Dat Pro Peak Influence 348 | 35 124 348 318 258 . 175 269 348 . . . . Initial 107 | . 22 48 16 71 . . 68 107 . . . . Average 163 | 16 87 169 142 176 . 138 182 184 . . . . Maximum Alert Level 1 | . . 1 1 1 . . 1 1 . . . . Low Security (%) 66 | 100 100 69 81 37 . 100 57 61 . . . . Level 1 33 | . . 30 18 62 . . 42 38 . . . . Level 2 . | . . . . . . . . . . . . . Level 3 . | . . . . . . . . . . . . . Level 4 . | . . . . . . . . . . . . . Level 5 . | . . . . . . . . . . . . . High Security . | . . . . . . . . . . . . . Max Security . | . . . . . . . . . . . . . Squads Dispatched 10 | . 1 . . . . . 4 5 . . . . Investigation 1 | . . . . . . . . 1 . . . . Extermination 2 | . . . . . . . . 2 . . . . Reinforcement 7 | . 1 . . . . . 4 2 . . . . Assault . | . . . . . . . . . . . . . Garrison . | . . . . . . . . . . . . . Intercept . | . . . . . . . . . . . . . Searches Triggered . | . . . . . . . . . . . . . Construction Impeded . | . . . . . . . . . . . . . Haulers Reinforced 1 | . . . . . . . . 1 . . . . Active Scanning Responses . | . . . . . . . . . . . . . Cargo Convoy Interrupts 1 | . . . . . . . . 1 . . . . Stealth | -11 -10 -10 -9 -9 -9 -8 -8 -7 -7 -7 -7 -6 --------- Run | Jun Mat Min Mat Min Exi Min Mat Fac Low Low Dat Pro Distress Signals 8 | . 1 . 3 . . . 3 1 . . . . Communications Jammed . | . . . . . . . . . . . . . Distress Signals . | . . . . . . . . . . . . . Times Spotted 131 | . 4 17 19 7 . 6 28 25 7 9 . 9 Peak Tracking Total 9 | . 3 9 7 4 . 3 7 5 5 4 . 8 Tactical Retreats 18 | . . 4 1 . . . 5 3 2 3 . . Traps | -11 -10 -10 -9 -9 -9 -8 -8 -7 -7 -7 -7 -6 ------- Run | Jun Mat Min Mat Min Exi Min Mat Fac Low Low Dat Pro Traps Triggered 1 | . . . . . . . 1 . . . . . Indirectly . | . . . . . . . . . . . . . Trap Hack Attempts . | . . . . . . . . . . . . . Triggered . | . . . . . . . . . . . . . Disarmed . | . . . . . . . . . . . . . Reprogrammed . | . . . . . . . . . . . . . Reused 5 | . . 3 . . . . . . . 2 . . Traps Extracted . | . . . . . . . . . . . . . Installed 8 | . . 5 . . . . . . . 3 . . Triggered 6 | . . 3 . . . . . 1 . 2 . . Most Traps Carried 5 | . . 5 . . . . . . . 3 . . Exploded 3 | . . . . . . . 3 . . . . . Machines | -11 -10 -10 -9 -9 -9 -8 -8 -7 -7 -7 -7 -6 ---------- Run | Jun Mat Min Mat Min Exi Min Mat Fac Low Low Dat Pro Machines Disabled 9 | . 2 . . 3 . 1 2 1 . . . . Max in Single Turn 3 | . 2 . . 3 . 1 1 1 . . . . Garrison Access 1 | . . . . . . . . 1 . . . . Machines Repaired . | . . . . . . . . . . . . . Machines Sabotaged . | . . . . . . . . . . . . . Overloaded Fab Kills . | . . . . . . . . . . . . . Hacking | -11 -10 -10 -9 -9 -9 -8 -8 -7 -7 -7 -7 -6 --------- Run | Jun Mat Min Mat Min Exi Min Mat Fac Low Low Dat Pro Machines Accessed 25 | . 1 . 7 . 1 . 2 10 . . 4 . Terminals 12 | . 1 . 6 . . . 2 3 . . . . Fabricators 3 | . . . . . . . . 3 . . . . Repair Stations . | . . . . . . . . . . . . . Recycling Units . | . . . . . . . . . . . . . Scanalyzers 3 | . . . 1 . . . . 2 . . . . Garrison Access 2 | . . . . . . . . 2 . . . . Total Hacks 112 | . 2 . 24 . 23 . 4 28 . . 31 . Successful 81 | . . . 10 . 23 . 1 16 . . 31 . Failed 31 | . 2 . 14 . . . 3 12 . . . . Catastrophic 3 | . . . . . . . 1 2 . . . . Database Lockouts . | . . . . . . . . . . . . . Manual 26 | . 2 . 14 . . . 2 8 . . . . Terminals 34 | . 2 . 20 . . . 4 8 . . . . Fabricators 9 | . . . . . . . . 9 . . . . Repair Stations . | . . . . . . . . . . . . . Recycling Units . | . . . . . . . . . . . . . Scanalyzers 12 | . . . 4 . . . . 8 . . . . Garrison Access 3 | . . . . . . . . 3 . . . . Terminal Hacks 57 | . . . 2 . 23 . . 1 . . 31 . Record 34 | . . . . . 23 . . . . . 11 . Part Schematic 12 | . . . . . . . . . . . 12 . Robot Schematic 5 | . . . . . . . . . . . 5 . Prototype ID Bank 4 | . . . 1 . . . . . . . 3 . Branch Access Points 1 | . . . . . . . . 1 . . . . Terminal Index 1 | . . . 1 . . . . . . . . . Fabricator Hacks 4 | . . . . . . . . 4 . . . . Load Schematic 2 | . . . . . . . . 2 . . . . Build 2 | . . . . . . . . 2 . . . . Repair Station Hacks . | . . . . . . . . . . . . . Recycling Unit Hacks . | . . . . . . . . . . . . . Scanalyzer 10 | . . . 3 . . . . 7 . . . . Insert Component 5 | . . . 2 . . . . 3 . . . . Analyze 5 | . . . 1 . . . . 4 . . . . Garrison Access Hacks 1 | . . . . . . . . 1 . . . . Seal Access 1 | . . . . . . . . 1 . . . . Unauthorized Hacks 9 | . . . 5 . . . 1 3 . . . . Terminals 9 | . . . 5 . . . 1 3 . . . . Track 1 | . . . 1 . . . . . . . . . Botnet 7 | . . . 3 . . . 1 3 . . . . Operators 1 | . . . 1 . . . . . . . . . Fabricators . | . . . . . . . . . . . . . Repair Stations . | . . . . . . . . . . . . . Recycling Units . | . . . . . . . . . . . . . Scanalyzers . | . . . . . . . . . . . . . Garrison Access . | . . . . . . . . . . . . . Data Cores Recovered . | . . . . . . . . . . . . . Used . | . . . . . . . . . . . . . Hacking Detections 17 | . 1 . 7 . . . 2 7 . . . . Full Trace Events 1 | . . . . . . . . 1 . . . . Feedback Events . | . . . . . . . . . . . . . Feedback Blocked . | . . . . . . . . . . . . . Robot Schematics Acquired 5 | . . . . . . . . . . . 5 . Robots Built 1 | . . . . . . . . 1 . . . . Authchips . | . . . . . . . . . . . . . Time 38 | . . . . . . . . 38 . . . . Total Robot Build Rating 3 | . . . . . . . . 3 . . . . Part Schematics Acquired 16 | . . . 1 . . . . 3 . . 12 . Parts Built 1 | . . . . . . . . 1 . . . . Authchips . | . . . . . . . . . . . . . Time 204 | . . . . . . . . 204 . . . . Total Part Build Rating 8 | . . . . . . . . 8 . . . . Parts Repaired . | . . . . . . . . . . . . . Time . | . . . . . . . . . . . . . Parts Recycled . | . . . . . . . . . . . . . Recycled Matter . | . . . . . . . . . . . . . Retrieved Matter . | . . . . . . . . . . . . . Retrieved Components . | . . . . . . . . . . . . . Parts Scanalyzed 4 | . . . 1 . . . . 3 . . . . Part Schematics Acquired 4 | . . . 1 . . . . 3 . . . . Parts Damaged 1 | . . . . . . . . 1 . . . . Bothacking | -11 -10 -10 -9 -9 -9 -8 -8 -7 -7 -7 -7 -6 ------------ Run | Jun Mat Min Mat Min Exi Min Mat Fac Low Low Dat Pro Used RIF Installer . | . . . . . . . . . . . . . Robots Hacked . | . . . . . . . . . . . . . Non-combat . | . . . . . . . . . . . . . Combat . | . . . . . . . . . . . . . Robot Hacks Applied . | . . . . . . . . . . . . . Relay Couplers Released 2 | . . . . . . . . 2 . . . . Machine Destruction 2 | . . . . . . . . 2 . . . . Fabnet Peak Effective % . | . . . . . . . . . . . . . Robots Rewired . | . . . . . . . . . . . . . Allies Hacked . | . . . . . . . . . . . . . Hacks Repelled . | . . . . . . . . . . . . . Allies | -11 -10 -10 -9 -9 -9 -8 -8 -7 -7 -7 -7 -6 -------- Run | Jun Mat Min Mat Min Exi Min Mat Fac Low Low Dat Pro Total Allies 2 | . . . . . . . . 1 . . . 1 Largest Group 1 | . . . . . . . . 1 . . . 1 Highest-Rated Group 96 | . . . . . . . . 26 . . . 96 Highest-Rated Ally 96 | . . . . . . . . 26 . . . 96 Total Orders . | . . . . . . . . . . . . . Ally Attacks 8 | . . . . . . . . . . . . 8 Total Damage 294 | . . . . . . . . . . . . 294 Kills 1 | . . . . . . . . . . . . 1 Allies Corrupted . | . . . . . . . . . . . . . Allies Melted . | . . . . . . . . . . . . . Intel | -11 -10 -10 -9 -9 -9 -8 -8 -7 -7 -7 -7 -6 ------- Run | Jun Mat Min Mat Min Exi Min Mat Fac Low Low Dat Pro Robot Analysis Total . | . . . . . . . . . . . . . Derelict Logs Recovered 6 | . . 2 . 1 . . . . 1 . . 2 Drone Launches . | . . . . . . . . . . . . . Drone Recoveries . | . . . . . . . . . . . . . Exploration | -11 -10 -10 -9 -9 -9 -8 -8 -7 -7 -7 -7 -6 ------------- Run | Jun Mat Min Mat Min Exi Min Mat Fac Low Low Dat Pro Turns Passed 5508 | 193 131 891 540 509 230 169 775 1306 224 246 41 253 Spaces Moved 4799 | 107 56 798 379 395 206 99 448 1140 432 353 81 305 Core 81 | 8 . . . . . . . 73 . . . . Treads 55 | . . . . . . . 43 12 . . . . Legs . | . . . . . . . . . . . . . Wheels 2929 | 99 56 798 379 395 206 99 405 492 . . . . Hover 1734 | . . . . . . . . 563 432 353 81 305 Flight . | . . . . . . . . . . . . . Fastest Speed 45 | 50 80 80 80 110 110 110 95 45 48 48 51 51 Average Speed 83 | 77 80 80 86 110 110 110 122 86 48 50 51 51 Slowest Speed 850 | 80 80 80 110 110 110 155 237 850 48 60 51 51 Overloaded Moves . | . . . . . . . . . . . . . Propulsion Burnouts . | . . . . . . . . . . . . . Robots Hopped . | . . . . . . . . . . . . . Cave-ins Triggered . | . . . . . . . . . . . . . Exploration Rate (%) 46 | 7 26 99 31 65 54 23 47 29 59 52 70 38 Regions Visited 12 Branch Regions 8 Pre-discovered Areas 6 | . . 1 . 1 1 . . . 1 . 1 1 Known Exits Taken 2 | . . . . . . 1 . 1 . . . . Unknown Exits Taken 10 | 1 1 1 1 1 1 . 1 . 1 1 1 . Scrap Searched 8 | . . 1 . 2 . . . . 2 2 . 1 Spaces Dug 16 | . . . . . . . 2 12 2 . . . Terrain Destroyed 156 | . 26 . . 40 . 35 36 17 2 . . . Melee 16 | . . . . . . . 2 12 2 . . . Projectile 6 | . . . . 1 . . . 5 . . . . AOE 134 | . 26 . . 39 . 35 34 . . . . . Terrain Rammed . | . . . . . . . . . . . . . Walls Destroyed . | . . . . . . . . . . . . . Machines Disabled . | . . . . . . . . . . . . . Actions | -11 -10 -10 -9 -9 -9 -8 -8 -7 -7 -7 -7 -6 --------- Run | Jun Mat Min Mat Min Exi Min Mat Fac Low Low Dat Pro Total 5886 | 162 134 1008 518 433 209 130 589 1376 445 405 80 397 Wait 506 | . 75 147 69 5 . 10 38 42 11 23 . 86 Move 4787 | 106 55 797 378 394 205 98 447 1139 431 352 80 305 Hop . | . . . . . . . . . . . . . Pick Up 135 | 16 . 15 13 6 4 3 21 49 1 6 . 1 Fast Attach . | . . . . . . . . . . . . . Attach 73 | 6 . 4 7 1 . 2 14 33 . 6 . . Detach 3 | . . . 1 . . . . 2 . . . . Swap 35 | . . 4 4 6 . 2 3 15 . . . 1 Drop 65 | 3 . 11 7 3 . . 4 34 . 3 . . Fire 209 | 31 4 25 39 18 . 15 59 16 . 2 . . Melee 64 | . . . . . . . 3 46 2 10 . 3 Ram . | . . . . . . . . . . . . . Kick . | . . . . . . . . . . . . . Crush . | . . . . . . . . . . . . . Escape Stasis . | . . . . . . . . . . . . . Rewire 1 | . . . . . . . . . . . . 1 Trap 8 | . . 5 . . . . . . . 3 . . Miscellaneous . | . . . . . . . . . . . . . Route ------- -11/Junkyard -10/Materials -10/Mines (discovered 2 exits: *Mat x2) -9/Materials (discovered 3 exits: Mat x2 / [*Min]) -9/Mines (discovered 2 exits: *Mat / *Exi) -9/Exiles -8/Mines -8/Materials -7/Factory (discovered 4 exits: *Fac x2 / *Low x2) -7/Lower Caves -7/Lower Caves -7/Data Miner -6/Proximity Caves (discovered 1 exit: Fac) History --------- Turn | Location | Event 18 | -11/Junkyard | Discovered new exit (range 16) 194 | -11/Junkyard | Entered Materials 309 | -10/Materials | Build established: Mutant 309 | -10/Materials | Discovered new exit (range 14) 325 | -10/Materials | Entered Mines 362 | -10/Mines | Discovered new exit (range 10) 398 | -10/Mines | Learned location of Zion (-6) 531 | -10/Mines | Discovered new exit (range 10) 556 | -10/Mines | Found a hidden stash of uninstalled traps 624 | -10/Mines | Found a damaged Exp. Sensor Array with a note attached 628 | -10/Mines | Found Prototype Device 664 | -10/Mines | Learned 8 Materials zone layouts 830 | -10/Mines | Received a Rocket Launcher from a helpful Derelict 855 | -10/Mines | Assembled infested the area 928 | -10/Mines | Build established: Scavenger-Mutant 1216 | -10/Mines | Entered Materials 1216 | -9/Materials | Evolved 2 slots: Utility x2 1217 | -9/Materials | Identified exit to Materials 1688 | -9/Materials | Identified Exp. Sensor Array 1694 | -9/Materials | Discovered new exit (range 7) 1756 | -9/Materials | Core integrity fell below 50% 1756 | -9/Materials | Entered Mines 1803 | -9/Mines | Build established: Mutant 1945 | -9/Mines | Deemed a non-threat by the Exiles lab entrance 1946 | -9/Mines | Discovered new exit (range 5) 1980 | -9/Mines | Discovered exit to Materials (range 16) 2075 | -9/Mines | Excavation squad dispatched 2075 | -9/Mines | A large section of the Mines collapsed 2265 | -9/Mines | Entered Exiles 2300 | -9/Exiles | Met 8R-AWN 2318 | -9/Exiles | Met EX-HEX 2360 | -9/Exiles | Met EX-DEC 2482 | -9/Exiles | Discovered new exit (range 14) 2491 | -9/Exiles | Build established: Scavenger-Mutant 2495 | -9/Exiles | Entered Mines 2536 | -8/Mines | Discovered exit to Materials (range 8) 2664 | -8/Mines | Entered Materials 2664 | -8/Materials | Evolved 2 slots: Propulsion x1, Utility x1 3004 | -8/Materials | Lost 10 parts (2p4n1u3w) 3190 | -8/Materials | Build established: Mutant 3403 | -8/Materials | Discovered new exit (range 16) 3436 | -8/Materials | Core integrity fell below 50% 3439 | -8/Materials | Entered Factory 3439 | -7/Factory | Evolved 2 slots: Utility x2 3464 | -7/Factory | Lost 3 parts (1n1u1w) 3870 | -7/Factory | Discovered new exit (range 12) 4017 | -7/Factory | Fabricated O-24 Administrator? 4266 | -7/Factory | Core integrity fell below 50% 4282 | -7/Factory | Lost 4 parts (1p3n) 4291 | -7/Factory | Discovered new exit (range 7) 4336 | -7/Factory | Identified exit to Lower Caves 4388 | -7/Factory | Cargo convoy interrupted 4404 | -7/Factory | Fabricated Exp. Sensor Array? 4745 | -7/Factory | Entered Lower Caves 4747 | -7/Lower Caves | Attracted the attention of an 0b10 checkpoint 4801 | -7/Lower Caves | Build established: Hacker-Mutant 4961 | -7/Lower Caves | Core integrity fell below 20% 4964 | -7/Lower Caves | Discovered new exit (range 11) 4969 | -7/Lower Caves | Entered another Lower Caves area 5058 | -7/Lower Caves | Lost 6 parts (1p3n2u) 5185 | -7/Lower Caves | Encountered a Warlord checkpoint 5185 | -7/Lower Caves | Discovered new exit (range 12) 5215 | -7/Lower Caves | Entered Data Miner 5215 | -7/Data Miner | Discovered new exit (range 6) 5225 | -7/Data Miner | Met Data Miner 5238 | -7/Data Miner | Learned location of Section 7 (-2) 5238 | -7/Data Miner | Acquired the access code to Warlord's prototype stash 5243 | -7/Data Miner | Received God Mode back door access code from Data Miner 5256 | -7/Data Miner | Entered Proximity Caves 5292 | -6/Proximity Caves | Attracted the attention of an 0b10 checkpoint 5293 | -6/Proximity Caves | Escorted by Enhanced Grunt 5313 | -6/Proximity Caves | Build established: Mutant 5412 | -6/Proximity Caves | Spotted B-75 Beast 5479 | -6/Proximity Caves | Identified exit to Factory 5509 | -6/Proximity Caves | Destroyed by S-27 Virus with Autogun Last Messages --------------- 05308_ System corrupted: Heat flow error (+280). 05350_ System corrupted: Energy discharge (-57). 05356_ Searching scrap... 05356_ Found Phase Cannon. 05356_ Found Enh. Flamer. 05356_ Found Actuator Array. 05356_ Found 23 Matter. 05357_ Acquired Actuator Array. 05435_ Enhanced Grunt Adv. Heat Sink blasted off. 05441_ Chainsword follow-up attack on B-75 Beast. 05448_ Enhanced Grunt destroyed. 05451_ Lgt. Nuclear Core destroyed. 05451_ Critical hit (Blast). 05464_ Knocked back. 05468_ Z5H 9PRJZC||RFKO9MV 8PZM 05479_ Acquired derelict log, extracted data. World map confirmed: -6/Factory. 05499_ Attempting to rewire G-50 Soldier. 05499_ G-50 Soldier is dormant, system inaccessible. 05499_ S-27 Virus springs to life. Map ----- +----------------------------------------------------+ | ?????????????????????????????????????????????????? | | ?????????????????????????????????????????????????? | | ?????????????????????????????????????????????????? | | ?????????????????????????????????????????????????? | | ???????###??#####??????????###???????#???????????? | | ######## #### #??????????# ??????? ???????????? | | #??????#???# #####?## #??????????? | | ##???## ???# #" #? # #??????????? | | #??## ???# #" #?? #??????????? | | ### #?## ??## #" /?? #??????????? | | #?# #?# #??# #" /?? #??????????? | | %#?# #?# #??# #" #?? #??????????? | | #?# #?# #??# #" #??# #??????????? | | ##?# ##?# ##?# ###/#### #??????????? | | #??## #??# #?# #??????????? | | #???# #???# ### ## ######??????????? | | ## ##???# #???# ##??????????????? | | ?## #????# ###??## #??????????????? | | #?## #????# #???## #??????????????? | | ##?# #???## ##?## ### ##??????????????? | | ### ##?## BB ### ## ##?# #???????????????? | | ## ### ## s#####??## ##???????????????? | | ### ## ##????###????????????????? | | ## ##??????????????????????? | | ### ### # ## ##?????????????????????? | | ## ### ### @ #?????????????????????? | | # #?###?# ## #?????????????????????? | | #### #????# ###### #?????????????????????? | | #??#####???# #?????##?????????????????????? | | #?????????# #????????????????????????????? | | # ?????????# ????????????????????????????? | | ? ?????????# ????????????????????????????? | | ? ???????? ????????????????????????????? | | ? ???????# #???????????????????????????? | | ? ?????????# # #???????????????????????????? | | ? ????????? ##? #???????????????????????????? | | ???????????? #??? #???????????????????????????? | | ??????????????????? ????????????????????????????? | | ?????????????????????????????????????????????????? | | ?????????????????????????????????????????????????? | | ?????????????????????????????????????????????????? | | ?????????????????????????????????????????????????? | | ?????????????????????????????????????????????????? | | ?????????????????????????????????????????????????? | | ?????????????????????????????????????????????????? | | ?????????????????????????????????????????????????? | | ?????????????????????????????????????????????????? | | ?????????????????????????????????????????????????? | | ?????????????????????????????????????????????????? | | ?????????????????????????????????????????????????? | +----------------------------------------------------+ Best States ------------- Heat Dissipation 34 Energy Generation 18 Energy Capacity 265 Matter Stores 300 Matter Capacity 300 Sight Range 16 Robot Scan Range 20 Terrain Scan Range 16 Terrain Scan Density 410 Additional Mass Support 9 Armor Coverage 150 Evasion (%) 56 Melee Accuracy 24 Recoil Reduction 2 Offensive Hacking 10 Defensive Hacking 10 Item Schematics ----------------- Exp. Sensor Array | -9/Materials | Scanalyzed Aerolev Unit | -7/Factory | Scanalyzed Adv. Weight Redist. System | -7/Factory | Scanalyzed Imp. Signal Interpreter | -7/Factory | Scanalyzed Combat Drone Bay | -7/Data Miner | Free Lgt. Regenerative Plating | -7/Data Miner | Free Cld. Aerolev Unit | -7/Data Miner | Free Gravity Neutralizer | -7/Data Miner | Free Gui. EMP Blaster | -7/Data Miner | Free Cmb. Gravmag System | -7/Data Miner | Free Remote Force Field | -7/Data Miner | Free Disruptor Cannon | -7/Data Miner | Free Energy Well | -7/Data Miner | Free Adv. Plasma Cannon | -7/Data Miner | Free Imp. Linear Gravjet | -7/Data Miner | Free Imp. Gyrokinetic Inverter | -7/Data Miner | Free Robot Schematics ------------------ E-15 Imp | -7/Data Miner | Free A-15 Conveyor | -7/Data Miner | Free M-14 Sweeper | -7/Data Miner | Free B-60 Warrior | -7/Data Miner | Free B-48 Gladiator | -7/Data Miner | Free Fabricated ------------ O-24 Administrator | x1 | -7/Factory | Preloaded Exp. Sensor Array | x1 | -7/Factory Alien Tech Used ----------------- None Achievements -------------- None Challenges ------------ None Game ------ Seed CoreMassBlade Manual? 0 Play Time 00:58:06 Cumulative 321.6 hours Start 2023.10.21 @ 11:03:27 End 2023.10.21 @ 14:30:21 Sessions 2 Manual Loads 0 Difficulty Rogue Special Mode None Game No. 360 Rogue 360 Adventurer 0 Explorer 0 Win Type - Total 6 Types 3/1/1/1/0/0/0/0/0 Lore% 65 Gallery% 78 Achievement% 67 Wizard Run 0 Options --------- ASCII 0 Keyboard 0 Movement Numpad Keybinds 0 Fullscreen 1 Font 24/Smallcaps Map View 76x50 Tactical HUD 1 Map Filters NONE Filters NONE Steam 1 RUN: 16fb369c-d07e-4b5e-aff7-f2616756ca48